[Event "*** Titled Tuesday Blitz"]
[Site "Chess.com"]
[Date "2021.04.20"]
[Round "7"]
[White "Agnes66678"]
[Black "ChessQueen"]
[Result "0-1"]
[WhiteElo "2454"]
[BlackElo "2699"]
[TimeControl "180+1"]
[EndTime "11:16:32 PDT"]
[Termination "ChessQueen won by checkmate"]

1. d4 {[%clk 0:03:00.9]} 1... Nf6 {[%clk 0:02:58.1]} 2. c4 {[%clk 0:03:00.8]}
2... e6 {[%clk 0:02:57.9]} 3. g3 {[%clk 0:03:00.5]} 3... d5 {[%clk 0:02:58]} 4.
Nf3 {[%clk 0:02:59.7]} 4... dxc4 {[%clk 0:02:57.5]} 5. Bg2 {[%clk 0:02:58.8]}
5... Nc6 {[%clk 0:02:56.8]} 6. Qa4 {[%clk 0:02:57.3]} 6... Bb4+ {[%clk
0:02:56.3]} 7. Bd2 {[%clk 0:02:56.7]} 7... Bd6 {[%clk 0:02:56.3]} 8. Qxc4 {[%clk
0:02:44.8]} 8... O-O {[%clk 0:02:52.9]} 9. O-O {[%clk 0:02:44.7]} 9... e5 {[%clk
0:02:52.9]} 10. d5 {[%clk 0:02:41.7]} 10... Ne7 {[%clk 0:02:52.6]} 11. e4 {[%clk
0:02:41.5]} 11... h6 {[%clk 0:02:49.3]} 12. Nc3 {[%clk 0:02:40.7]} 12... a6
{[%clk 0:02:49.1]} 13. a4 {[%clk 0:02:36.5]} 13... Bd7 {[%clk 0:02:43.3]} 14.
Rfd1 {[%clk 0:02:30.6]} 14... Qb8 {[%clk 0:02:40.7]} 15. Bf1 {[%clk 0:02:24.5]}
15... Rc8 {[%clk 0:02:30.8]} 16. b4 {[%clk 0:02:18.9]} 16... c6 {[%clk
0:02:26.5]} 17. Qb3 {[%clk 0:02:06.4]} 17... cxd5 {[%clk 0:02:21.2]} 18. exd5
{[%clk 0:02:06.3]} 18... Bg4 {[%clk 0:02:16.7]} 19. Be2 {[%clk 0:01:57.6]} 19...
Qc7 {[%clk 0:02:12.8]} 20. Rac1 {[%clk 0:01:39.1]} 20... Qd7 {[%clk 0:02:04.1]}
21. Be3 {[%clk 0:01:35.2]} 21... Qf5 {[%clk 0:01:57.8]} 22. Nh4 {[%clk
0:01:34.2]} 22... Qh5 {[%clk 0:01:50.9]} 23. f3 {[%clk 0:01:29.9]} 23... Bd7
{[%clk 0:01:49]} 24. Ng2 {[%clk 0:01:25.1]} 24... Rc7 {[%clk 0:01:25]} 25. Bb6
{[%clk 0:01:15.6]} 25... Rcc8 {[%clk 0:01:21.8]} 26. Rd2 {[%clk 0:01:10]} 26...
Qh3 {[%clk 0:01:15.5]} 27. Rdc2 {[%clk 0:01:05.1]} 27... Bf5 {[%clk 0:01:12]}
28. Rd2 {[%clk 0:01:04.3]} 28... e4 {[%clk 0:01:05.6]} 29. Rcd1 {[%clk
0:00:53.7]} 29... exf3 {[%clk 0:00:57.6]} 30. Bxf3 {[%clk 0:00:54.6]} 30... Bg4
{[%clk 0:00:57.8]} 31. Ne2 {[%clk 0:00:41.9]} 31... Bxf3 {[%clk 0:00:56.5]} 32.
Qxf3 {[%clk 0:00:42.8]} 32... Ng4 {[%clk 0:00:56.9]} 33. Nef4 {[%clk 0:00:34]}
33... Qxh2+ {[%clk 0:00:53]} 34. Kf1 {[%clk 0:00:34.3]} 34... Ne5 {[%clk
0:00:50]} 35. Qb3 {[%clk 0:00:27.1]} 35... Nf5 {[%clk 0:00:49.3]} 36. Bf2 {[%clk
0:00:26.2]} 36... Nc4 {[%clk 0:00:42.6]} 37. Re2 {[%clk 0:00:25.1]} 37... b5
{[%clk 0:00:38]} 38. a5 {[%clk 0:00:24.2]} 38... Re8 {[%clk 0:00:37]} 39. Rde1
{[%clk 0:00:23.6]} 39... Re5 {[%clk 0:00:35.5]} 40. Rxe5 {[%clk 0:00:23.1]}
40... Nd2+ {[%clk 0:00:34.2]} 41. Ke2 {[%clk 0:00:21.9]} 41... Nxb3 {[%clk
0:00:34]} 42. Rxf5 {[%clk 0:00:20.4]} 42... Re8+ {[%clk 0:00:30.9]} 43. Kd1
{[%clk 0:00:20.4]} 43... Rxe1+ {[%clk 0:00:29.9]} 44. Nxe1 {[%clk 0:00:21.3]}
44... Qxf2 {[%clk 0:00:28.4]} 45. Ng6 {[%clk 0:00:19.2]} 45... Qd2# {[%clk
0:00:27.6]} 0-1

[Event "*** Titled Tuesday Blitz"]
[Site "Chess.com"]
[Date "2021.04.20"]
[Round "7"]
[White "MMSANCHEZ"]
[Black "MrChampion_Coach"]
[Result "0-1"]
[WhiteElo "2533"]
[BlackElo "2424"]
[TimeControl "180+1"]
[EndTime "11:16:33 PDT"]
[Termination "MrChampion_Coach won by resignation"]

1. d4 {[%clk 0:03:00.9]} 1... Nf6 {[%clk 0:02:56.9]} 2. c4 {[%clk 0:03:00.3]}
2... e6 {[%clk 0:02:56.7]} 3. Nf3 {[%clk 0:03:00.2]} 3... d5 {[%clk 0:02:55.8]}
4. Nc3 {[%clk 0:02:58.7]} 4... a6 {[%clk 0:02:55.4]} 5. Qb3 {[%clk 0:02:53.7]}
5... dxc4 {[%clk 0:02:46.6]} 6. Qxc4 {[%clk 0:02:50.6]} 6... b5 {[%clk
0:02:46.7]} 7. Qd3 {[%clk 0:02:50.6]} 7... c5 {[%clk 0:02:46.7]} 8. Bg5 {[%clk
0:02:47.2]} 8... c4 {[%clk 0:02:35.7]} 9. Qc2 {[%clk 0:02:42.9]} 9... Bb7 {[%clk
0:02:30.9]} 10. e4 {[%clk 0:02:08]} 10... Nbd7 {[%clk 0:02:08.5]} 11. e5 {[%clk
0:02:06.8]} 11... h6 {[%clk 0:02:08.3]} 12. Bh4 {[%clk 0:02:02.1]} 12... g5
{[%clk 0:02:07.8]} 13. Nxg5 {[%clk 0:02:00.6]} 13... hxg5 {[%clk 0:02:07]} 14.
Bxg5 {[%clk 0:02:01.2]} 14... Be7 {[%clk 0:01:47]} 15. exf6 {[%clk 0:01:59]}
15... Nxf6 {[%clk 0:01:41]} 16. Rd1 {[%clk 0:01:51.3]} 16... Rc8 {[%clk
0:01:27.9]} 17. a3 {[%clk 0:01:48.1]} 17... Rg8 {[%clk 0:01:22.1]} 18. h4 {[%clk
0:01:45.9]} 18... Qb6 {[%clk 0:01:01.3]} 19. f3 {[%clk 0:01:17.8]} 19... Nd5
{[%clk 0:00:27.1]} 20. Bxe7 {[%clk 0:01:14.1]} 20... Kxe7 {[%clk 0:00:26.8]} 21.
Ne4 {[%clk 0:01:05.1]} 21... Ne3 {[%clk 0:00:22]} 22. Qc3 {[%clk 0:01:02.3]}
22... Nxd1 {[%clk 0:00:20.6]} 23. Qb4+ {[%clk 0:00:58.4]} 23... Kd8 {[%clk
0:00:14.8]} 24. Nd6 {[%clk 0:00:41.3]} 24... Rc7 {[%clk 0:00:10.5]} 25. Kxd1
{[%clk 0:00:16.9]} 25... Qxd4+ {[%clk 0:00:10.3]} 26. Kc2 {[%clk 0:00:16.7]}
26... Rd7 {[%clk 0:00:10.6]} 27. Nxb7+ {[%clk 0:00:13.5]} 27... Rxb7 {[%clk
0:00:11.5]} 28. Be2 {[%clk 0:00:13]} 28... Rd7 {[%clk 0:00:07.4]} 29. Rd1 {[%clk
0:00:11.6]} 29... Qe3 {[%clk 0:00:07.6]} 30. Qa5+ {[%clk 0:00:10.9]} 30... Ke8
{[%clk 0:00:07.4]} 31. Rxd7 {[%clk 0:00:05.4]} 31... Kxd7 {[%clk 0:00:08.3]} 32.
Bf1 {[%clk 0:00:05.7]} 32... Qf2+ {[%clk 0:00:08.5]} 33. Kc3 {[%clk 0:00:05.8]}
33... Qe1+ {[%clk 0:00:08.4]} 34. Kd4 {[%clk 0:00:05.6]} 34... Qxa5 {[%clk
0:00:09.1]} 0-1

[Event "*** Titled Tuesday Blitz"]
[Site "Chess.com"]
[Date "2021.04.20"]
[Round "7"]
[White "muchojogo"]
[Black "Trickster_Pony"]
[Result "1-0"]
[WhiteElo "2463"]
[BlackElo "1605"]
[TimeControl "180+1"]
[EndTime "11:16:34 PDT"]
[Termination "muchojogo won on time"]

1. g4 {[%clk 0:03:00.9]} 1... d5 {[%clk 0:02:55.6]} 2. Bg2 {[%clk 0:02:57.6]}
2... Bxg4 {[%clk 0:02:39.9]} 3. c4 {[%clk 0:02:57.5]} 3... c6 {[%clk 0:02:39.3]}
4. cxd5 {[%clk 0:02:57.4]} 4... cxd5 {[%clk 0:02:39.3]} 5. Qb3 {[%clk 0:02:58]}
5... e6 {[%clk 0:01:57.2]} 6. Qxb7 {[%clk 0:02:53.9]} 6... Nd7 {[%clk 0:01:57]}
7. Nc3 {[%clk 0:02:51]} 7... a6 {[%clk 0:01:28.3]} 8. Qb3 {[%clk 0:02:50]} 8...
Ngf6 {[%clk 0:01:23.9]} 9. d3 {[%clk 0:02:48.7]} 9... Be7 {[%clk 0:01:23.4]} 10.
Nf3 {[%clk 0:02:48.5]} 10... O-O {[%clk 0:01:22]} 11. Bf4 {[%clk 0:02:46.3]}
11... Nh5 {[%clk 0:01:11.9]} 12. Bd2 {[%clk 0:02:44.7]} 12... Rb8 {[%clk
0:01:08.3]} 13. Qc2 {[%clk 0:02:44.8]} 13... Nhf6 {[%clk 0:01:02.5]} 14. O-O
{[%clk 0:02:43.1]} 14... e5 {[%clk 0:00:58.8]} 15. Rfc1 {[%clk 0:02:34.1]} 15...
Rc8 {[%clk 0:00:58.8]} 16. Qa4 {[%clk 0:02:33]} 16... Nc5 {[%clk 0:00:58]} 17.
Qd1 {[%clk 0:02:27.7]} 17... e4 {[%clk 0:00:55.7]} 18. dxe4 {[%clk 0:02:24.3]}
18... dxe4 {[%clk 0:00:56.6]} 19. Ne1 {[%clk 0:02:24.8]} 19... Nd3 {[%clk
0:00:35.8]} 20. Rcb1 {[%clk 0:02:15]} 20... Bc5 {[%clk 0:00:31.7]} 21. Nxd3
{[%clk 0:02:04.7]} 21... exd3 {[%clk 0:00:31.2]} 22. Be1 {[%clk 0:02:02.7]}
22... dxe2 {[%clk 0:00:27.1]} 23. Qxd8 {[%clk 0:02:01]} 23... Rcxd8 {[%clk
0:00:22.8]} 24. h3 {[%clk 0:02:01.9]} 24... Bh5 {[%clk 0:00:22.3]} 25. Rc1
{[%clk 0:02:00.4]} 25... Ba7 {[%clk 0:00:17.3]} 26. Rc2 {[%clk 0:02:00.2]} 26...
Rfe8 {[%clk 0:00:17.2]} 27. Bc6 {[%clk 0:01:57.1]} 27... Re6 {[%clk 0:00:16.2]}
28. Bg2 {[%clk 0:01:53.1]} 28... Nd7 {[%clk 0:00:14.2]} 29. Rd2 {[%clk
0:01:50.8]} 29... Ree8 {[%clk 0:00:12.6]} 30. Bc6 {[%clk 0:01:48.7]} 30... Re7
{[%clk 0:00:12.7]} 31. Nd5 {[%clk 0:01:46.8]} 31... Re6 {[%clk 0:00:10.5]} 32.
Nf4 {[%clk 0:01:21.7]} 32... Rxc6 {[%clk 0:00:08.3]} 33. Nxh5 {[%clk 0:01:21.7]}
33... g6 {[%clk 0:00:06.1]} 34. Ng3 {[%clk 0:01:20.9]} 34... Re6 {[%clk
0:00:04.8]} 35. Nxe2 {[%clk 0:01:19.9]} 35... Ree8 {[%clk 0:00:04.3]} 36. Nc3
{[%clk 0:01:18.9]} 36... Nc5 {[%clk 0:00:04]} 37. Rxd8 {[%clk 0:01:18.2]} 37...
Rxd8 {[%clk 0:00:04.9]} 38. Rd1 {[%clk 0:01:17.4]} 38... Rxd1 {[%clk 0:00:04.1]}
39. Nxd1 {[%clk 0:01:18.3]} 39... Nd3 {[%clk 0:00:04.7]} 40. Bd2 {[%clk
0:01:17.7]} 40... Bd4 {[%clk 0:00:04.2]} 41. b3 {[%clk 0:01:18]} 41... f5 {[%clk
0:00:03.4]} 42. Kf1 {[%clk 0:01:18.2]} 42... Kf7 {[%clk 0:00:03.9]} 43. Ke2
{[%clk 0:01:18.8]} 43... Ne5 {[%clk 0:00:02.6]} 44. Bf4 {[%clk 0:01:18.5]} 44...
Ke6 {[%clk 0:00:02.6]} 45. Ne3 {[%clk 0:01:17.3]} 45... Bb6 {[%clk 0:00:02.6]}
46. Nc2 {[%clk 0:01:16.5]} 46... Kd5 {[%clk 0:00:02.7]} 47. Nb4+ {[%clk
0:01:15.8]} 47... Kc5 {[%clk 0:00:02.4]} 48. Nxa6+ {[%clk 0:01:13.9]} 48... Kb5
{[%clk 0:00:03]} 49. Bxe5 {[%clk 0:01:10.4]} 49... Kxa6 {[%clk 0:00:03.9]} 50.
f3 {[%clk 0:01:10.8]} 50... Ka5 {[%clk 0:00:04.2]} 51. Kd3 {[%clk 0:01:10.2]}
51... Kb4 {[%clk 0:00:03.7]} 52. Bd6+ {[%clk 0:01:10.8]} 52... Kb5 {[%clk
0:00:03.7]} 53. a4+ {[%clk 0:01:10.9]} 53... Ka6 {[%clk 0:00:04]} 54. b4 {[%clk
0:01:10.5]} 54... Bf2 {[%clk 0:00:03.9]} 55. Kc4 {[%clk 0:01:10.6]} 55... Be3
{[%clk 0:00:02.6]} 56. Bc5 {[%clk 0:01:09]} 1-0

[Event "*** Titled Tuesday Blitz"]
[Site "Chess.com"]
[Date "2021.04.20"]
[Round "7"]
[White "TST2014"]
[Black "profofchess"]
[Result "1-0"]
[WhiteElo "2658"]
[BlackElo "2508"]
[TimeControl "180+1"]
[EndTime "11:16:35 PDT"]
[Termination "TST2014 won by resignation"]

1. d4 {[%clk 0:03:00.9]} 1... Nf6 {[%clk 0:02:59.6]} 2. c4 {[%clk 0:02:58.4]}
2... e6 {[%clk 0:02:59.6]} 3. Nf3 {[%clk 0:02:57.8]} 3... c5 {[%clk 0:02:59.9]}
4. e3 {[%clk 0:02:57.4]} 4... b6 {[%clk 0:02:56.9]} 5. Nc3 {[%clk 0:02:55.5]}
5... g6 {[%clk 0:02:57.1]} 6. d5 {[%clk 0:02:52.5]} 6... exd5 {[%clk 0:02:57.1]}
7. cxd5 {[%clk 0:02:52.6]} 7... Bg7 {[%clk 0:02:57]} 8. a4 {[%clk 0:02:47.1]}
8... O-O {[%clk 0:02:52.8]} 9. Bd3 {[%clk 0:02:46.6]} 9... d6 {[%clk 0:02:51.5]}
10. h3 {[%clk 0:02:45.5]} 10... a6 {[%clk 0:02:50.3]} 11. O-O {[%clk 0:02:44.8]}
11... Nbd7 {[%clk 0:02:30.9]} 12. e4 {[%clk 0:02:43.3]} 12... Re8 {[%clk
0:02:30.5]} 13. Bf4 {[%clk 0:02:41.7]} 13... Qe7 {[%clk 0:02:30.3]} 14. Re1
{[%clk 0:02:40.9]} 14... Nh5 {[%clk 0:02:26.1]} 15. Bh2 {[%clk 0:02:34.8]} 15...
Rb8 {[%clk 0:02:26.2]} 16. Qe2 {[%clk 0:02:28.9]} 16... Ne5 {[%clk 0:02:19.9]}
17. Nxe5 {[%clk 0:02:26.9]} 17... Bxe5 {[%clk 0:02:19.6]} 18. Bxa6 {[%clk
0:02:25.2]} 18... Bxh2+ {[%clk 0:02:17.6]} 19. Kxh2 {[%clk 0:02:25.1]} 19... Nf4
{[%clk 0:02:15]} 20. Qf1 {[%clk 0:02:23.2]} 20... Bxa6 {[%clk 0:02:09.8]} 21.
Qxa6 {[%clk 0:02:22.4]} 21... g5 {[%clk 0:01:20.4]} 22. g3 {[%clk 0:02:08.5]}
22... Ng6 {[%clk 0:01:16.5]} 23. Re3 {[%clk 0:01:59.4]} 23... h5 {[%clk
0:01:15.6]} 24. Qe2 {[%clk 0:01:54.8]} 24... h4 {[%clk 0:01:15.1]} 25. Qh5
{[%clk 0:01:51.3]} 25... Qe5 {[%clk 0:01:13.1]} 26. Rf1 {[%clk 0:01:40.5]} 26...
Kg7 {[%clk 0:01:12.2]} 27. Qg4 {[%clk 0:01:39.7]} 27... Rh8 {[%clk 0:01:04.3]}
28. f4 {[%clk 0:01:29.7]} 28... hxg3+ {[%clk 0:00:53.4]} 29. Rxg3 {[%clk
0:01:29.1]} 29... gxf4 {[%clk 0:00:22.9]} 30. Qxf4 {[%clk 0:01:23.8]} 30... Qe7
{[%clk 0:00:20.1]} 31. Qg5 {[%clk 0:01:16.9]} 31... Qxg5 {[%clk 0:00:14.8]} 32.
Rxg5 {[%clk 0:01:16.2]} 32... f6 {[%clk 0:00:10]} 33. Rg4 {[%clk 0:01:09.9]}
33... Kf7 {[%clk 0:00:08.3]} 34. Nb5 {[%clk 0:00:59.5]} 34... Rbd8 {[%clk
0:00:07.5]} 35. Rfg1 {[%clk 0:00:55.6]} 35... Rh6 {[%clk 0:00:07.4]} 36. b3
{[%clk 0:00:51.5]} 36... Rd7 {[%clk 0:00:07.3]} 37. R1g3 {[%clk 0:00:49.1]}
37... Rd8 {[%clk 0:00:07.4]} 38. Kg2 {[%clk 0:00:48.9]} 38... Rd7 {[%clk
0:00:07.4]} 39. Kf2 {[%clk 0:00:49]} 39... Rd8 {[%clk 0:00:07.5]} 40. h4 {[%clk
0:00:47.6]} 40... Ne5 {[%clk 0:00:01.9]} 41. Rg7+ {[%clk 0:00:47.2]} 41... Ke8
{[%clk 0:00:02.3]} 42. Rg8+ {[%clk 0:00:40.4]} 42... Ke7 {[%clk 0:00:02.2]} 43.
R3g7+ {[%clk 0:00:40]} 43... Nf7 {[%clk 0:00:02.5]} 44. Rxd8 {[%clk 0:00:39.9]}
44... Kxd8 {[%clk 0:00:02.5]} 45. Rxf7 {[%clk 0:00:40.1]} 1-0

[Event "*** Titled Tuesday Blitz"]
[Site "Chess.com"]
[Date "2021.04.20"]
[Round "7"]
[White "Deepweb2020"]
[Black "fyall777"]
[Result "0-1"]
[WhiteElo "2481"]
[BlackElo "2344"]
[TimeControl "180+1"]
[EndTime "11:16:35 PDT"]
[Termination "fyall777 won on time"]

1. d4 {[%clk 0:02:55]} 1... Nf6 {[%clk 0:02:58.9]} 2. c4 {[%clk 0:02:51.6]} 2...
g6 {[%clk 0:02:58.9]} 3. Nf3 {[%clk 0:02:51]} 3... Bg7 {[%clk 0:02:57.9]} 4. g3
{[%clk 0:02:51.5]} 4... d5 {[%clk 0:02:57.2]} 5. cxd5 {[%clk 0:02:49.8]} 5...
O-O {[%clk 0:02:57.3]} 6. Bg2 {[%clk 0:02:49.9]} 6... Nxd5 {[%clk 0:02:57.1]} 7.
Nc3 {[%clk 0:02:49.8]} 7... Nxc3 {[%clk 0:02:56.4]} 8. bxc3 {[%clk 0:02:50.1]}
8... Bf5 {[%clk 0:02:44.2]} 9. Nh4 {[%clk 0:02:42.8]} 9... Bc8 {[%clk
0:02:43.6]} 10. O-O {[%clk 0:02:41.4]} 10... c5 {[%clk 0:02:43.8]} 11. e3 {[%clk
0:02:39.3]} 11... Nc6 {[%clk 0:02:43]} 12. f4 {[%clk 0:02:38.7]} 12... cxd4
{[%clk 0:02:41.2]} 13. cxd4 {[%clk 0:02:38.1]} 13... Nxd4 {[%clk 0:02:38.8]} 14.
Rb1 {[%clk 0:02:17.4]} 14... Nc6 {[%clk 0:02:27.2]} 15. Qa4 {[%clk 0:02:10.3]}
15... Qd3 {[%clk 0:01:29]} 16. Rb3 {[%clk 0:01:42.7]} 16... Qc2 {[%clk
0:01:28.7]} 17. Qa3 {[%clk 0:01:05.7]} 17... Rd8 {[%clk 0:01:15.9]} 18. Bb2
{[%clk 0:00:55.6]} 18... Bxb2 {[%clk 0:01:05.4]} 19. Rxb2 {[%clk 0:00:55.8]}
19... Qc4 {[%clk 0:01:01.6]} 20. Bxc6 {[%clk 0:00:26.1]} 20... Qxc6 {[%clk
0:00:58.7]} 21. Qxe7 {[%clk 0:00:24.5]} 21... Bh3 {[%clk 0:00:55.3]} 22. Rfb1
{[%clk 0:00:20.7]} 22... b6 {[%clk 0:00:49]} 23. f5 {[%clk 0:00:18.7]} 23... Re8
{[%clk 0:00:42.6]} 24. Qg5 {[%clk 0:00:18.4]} 24... f6 {[%clk 0:00:38.1]} 25.
Qh6 {[%clk 0:00:16.5]} 25... g5 {[%clk 0:00:36.4]} 26. Ng6 {[%clk 0:00:15.8]}
26... Bxf5 {[%clk 0:00:35.8]} 27. Nf4 {[%clk 0:00:04.4]} 27... gxf4 {[%clk
0:00:34.2]} 28. Rf1 {[%clk 0:00:04.9]} 28... f3 {[%clk 0:00:32.9]} 29. Qf4
{[%clk 0:00:03.2]} 29... Be4 {[%clk 0:00:31.9]} 30. Rbf2 {[%clk 0:00:02.3]}
30... f5 {[%clk 0:00:32]} 31. g4 {[%clk 0:00:02.3]} 31... Qg6 {[%clk 0:00:31.2]}
32. h3 {[%clk 0:00:02.1]} 32... Rf8 {[%clk 0:00:30.7]} 33. Qg3 {[%clk
0:00:01.5]} 33... fxg4 {[%clk 0:00:29.6]} 34. hxg4 {[%clk 0:00:01.7]} 34... h5
{[%clk 0:00:29.4]} 35. g5 {[%clk 0:00:01.1]} 35... Rf5 {[%clk 0:00:29.2]} 36.
Rh2 {[%clk 0:00:01.7]} 36... Rxg5 {[%clk 0:00:28.4]} 0-1

[Event "*** Titled Tuesday Blitz"]
[Site "Chess.com"]
[Date "2021.04.20"]
[Round "7"]
[White "Kale36"]
[Black "FGHSMN"]
[Result "1-0"]
[WhiteElo "2321"]
[BlackElo "2476"]
[TimeControl "180+1"]
[EndTime "11:16:36 PDT"]
[Termination "Kale36 won by checkmate"]

1. b3 {[%clk 0:03:00.9]} 1... e5 {[%clk 0:02:57.3]} 2. Bb2 {[%clk 0:03:00.3]}
2... Nc6 {[%clk 0:02:57.6]} 3. e3 {[%clk 0:03:00.5]} 3... Nf6 {[%clk 0:02:56.8]}
4. Bb5 {[%clk 0:02:59.9]} 4... Bd6 {[%clk 0:02:56.9]} 5. Na3 {[%clk 0:02:59.8]}
5... Na5 {[%clk 0:02:56.1]} 6. Be2 {[%clk 0:02:57.9]} 6... Qe7 {[%clk
0:02:55.4]} 7. Nb5 {[%clk 0:02:56.8]} 7... O-O {[%clk 0:02:53.1]} 8. Nxd6 {[%clk
0:02:56.4]} 8... cxd6 {[%clk 0:02:54]} 9. Nf3 {[%clk 0:02:55]} 9... Nc6 {[%clk
0:02:54.2]} 10. O-O {[%clk 0:02:53.9]} 10... d5 {[%clk 0:02:52.7]} 11. d4 {[%clk
0:02:53.6]} 11... e4 {[%clk 0:02:52]} 12. Ne5 {[%clk 0:02:53.9]} 12... d6 {[%clk
0:02:51.9]} 13. Ng4 {[%clk 0:02:51.4]} 13... Nxg4 {[%clk 0:02:49.9]} 14. Bxg4
{[%clk 0:02:51]} 14... f5 {[%clk 0:02:50.4]} 15. Bh3 {[%clk 0:02:50.3]} 15...
Be6 {[%clk 0:02:49.6]} 16. f4 {[%clk 0:02:45.6]} 16... b5 {[%clk 0:02:49.1]} 17.
Rf2 {[%clk 0:02:34.9]} 17... Rac8 {[%clk 0:02:47.2]} 18. g3 {[%clk 0:02:34.5]}
18... b4 {[%clk 0:02:42.4]} 19. Bf1 {[%clk 0:02:33.6]} 19... a5 {[%clk
0:02:39.6]} 20. c4 {[%clk 0:02:32.6]} 20... bxc3 {[%clk 0:02:35.4]} 21. Bxc3
{[%clk 0:02:32.1]} 21... Nb4 {[%clk 0:02:34]} 22. Bxb4 {[%clk 0:02:27]} 22...
axb4 {[%clk 0:02:33.4]} 23. Rc2 {[%clk 0:02:27.2]} 23... Rxc2 {[%clk 0:02:23.5]}
24. Qxc2 {[%clk 0:02:24.6]} 24... Rc8 {[%clk 0:02:24.4]} 25. Qd2 {[%clk
0:02:24.9]} 25... Rc3 {[%clk 0:02:23.6]} 26. a3 {[%clk 0:02:22.7]} 26... Qc7
{[%clk 0:02:20]} 27. axb4 {[%clk 0:02:13.2]} 27... Rc2 {[%clk 0:02:16.7]} 28.
Qe1 {[%clk 0:02:06.8]} 28... h5 {[%clk 0:02:07.5]} 29. b5 {[%clk 0:02:03.5]}
29... h4 {[%clk 0:02:01.7]} 30. gxh4 {[%clk 0:02:00.7]} 30... Qf7 {[%clk
0:01:51.1]} 31. Ra8+ {[%clk 0:01:55.1]} 31... Kh7 {[%clk 0:01:50.8]} 32. Qg3
{[%clk 0:01:54.8]} 32... Rc1 {[%clk 0:01:44.9]} 33. b6 {[%clk 0:01:49.8]} 33...
Bc8 {[%clk 0:00:34.3]} 34. Ra7 {[%clk 0:01:41.5]} 34... Bb7 {[%clk 0:00:34.4]}
35. h5 {[%clk 0:01:32.6]} 35... Qd7 {[%clk 0:00:17.2]} 36. Qg6+ {[%clk
0:01:12.1]} 36... Kh8 {[%clk 0:00:17.3]} 37. h6 {[%clk 0:01:01.5]} 37... gxh6
{[%clk 0:00:18.2]} 38. Qxh6+ {[%clk 0:01:01.8]} 38... Kg8 {[%clk 0:00:18.4]} 39.
Qg6+ {[%clk 0:01:01.9]} 39... Kf8 {[%clk 0:00:17.2]} 40. Qf6+ {[%clk 0:01:00.3]}
40... Kg8 {[%clk 0:00:17]} 41. Ra2 {[%clk 0:00:39.5]} 41... Kh7 {[%clk
0:00:08.2]} 42. Rg2 {[%clk 0:00:37.8]} 42... Rc8 {[%clk 0:00:03.4]} 43. Qh4#
{[%clk 0:00:37.1]} 1-0

[Event "*** Titled Tuesday Blitz"]
[Site "Chess.com"]
[Date "2021.04.20"]
[Round "7"]
[White "SHIVACalypso"]
[Black "biostatistician"]
[Result "0-1"]
[WhiteElo "2466"]
[BlackElo "2611"]
[TimeControl "180+1"]
[EndTime "11:16:41 PDT"]
[Termination "biostatistician won by resignation"]

1. Nf3 {[%clk 0:03:00.9]} 1... Nf6 {[%clk 0:02:58.4]} 2. c4 {[%clk 0:03:01.8]}
2... g6 {[%clk 0:02:57.4]} 3. g3 {[%clk 0:03:02.7]} 3... Bg7 {[%clk 0:02:54.2]}
4. Bg2 {[%clk 0:03:03.1]} 4... O-O {[%clk 0:02:55.1]} 5. O-O {[%clk 0:03:03]}
5... b6 {[%clk 0:02:55.6]} 6. d4 {[%clk 0:03:00.9]} 6... Bb7 {[%clk 0:02:55.8]}
7. Nc3 {[%clk 0:03:01.4]} 7... Ne4 {[%clk 0:02:56.1]} 8. Qc2 {[%clk 0:03:01.2]}
8... Nxc3 {[%clk 0:02:56.5]} 9. Qxc3 {[%clk 0:03:02.1]} 9... c5 {[%clk 0:02:57]}
10. Be3 {[%clk 0:03:01.1]} 10... Nc6 {[%clk 0:02:57.2]} 11. Rfd1 {[%clk
0:02:59.4]} 11... Rc8 {[%clk 0:02:52.3]} 12. Rac1 {[%clk 0:02:56.6]} 12... d5
{[%clk 0:02:42.1]} 13. Qd2 {[%clk 0:02:40.6]} 13... dxc4 {[%clk 0:02:18.4]} 14.
dxc5 {[%clk 0:02:28.6]} 14... b5 {[%clk 0:02:17.8]} 15. Qd7 {[%clk 0:02:03.7]}
15... Qxd7 {[%clk 0:02:16.6]} 16. Rxd7 {[%clk 0:02:04.6]} 16... Ba8 {[%clk
0:02:05.7]} 17. b3 {[%clk 0:01:56.3]} 17... c3 {[%clk 0:02:03.7]} 18. a3 {[%clk
0:01:44]} 18... Rfd8 {[%clk 0:01:50.1]} 19. Rxd8+ {[%clk 0:01:36.4]} 19... Rxd8
{[%clk 0:01:51]} 20. b4 {[%clk 0:01:37]} 20... a5 {[%clk 0:01:51.4]} 21. Ne1
{[%clk 0:01:07.9]} 21... axb4 {[%clk 0:01:50.1]} 22. Bxc6 {[%clk 0:01:07.8]}
22... bxa3 {[%clk 0:01:17.7]} 23. Bxb5 {[%clk 0:01:00.3]} 23... a2 {[%clk
0:00:56.9]} 24. Nc2 {[%clk 0:00:58.8]} 24... Rb8 {[%clk 0:00:54]} 25. Bc4 {[%clk
0:00:44.2]} 25... Rb2 {[%clk 0:00:51.9]} 26. Na1 {[%clk 0:00:28.8]} 26... c2
{[%clk 0:00:34]} 27. Nxc2 {[%clk 0:00:18.8]} 27... Rxc2 {[%clk 0:00:32.6]} 28.
Bxa2 {[%clk 0:00:12]} 28... Rxa2 {[%clk 0:00:32.7]} 29. c6 {[%clk 0:00:12.9]}
29... Bf6 {[%clk 0:00:31.7]} 30. c7 {[%clk 0:00:12.6]} 30... Bb7 {[%clk
0:00:31.2]} 31. Rb1 {[%clk 0:00:09.8]} 31... Ba6 {[%clk 0:00:27.4]} 32. Bh6
{[%clk 0:00:08.8]} 32... Rb2 {[%clk 0:00:19.9]} 33. Ra1 {[%clk 0:00:07.1]} 33...
Bb7 {[%clk 0:00:14.9]} 34. Ra7 {[%clk 0:00:06.3]} 34... Rb1+ {[%clk 0:00:14.9]}
0-1